Workbook

Sheet ЭЭ (2)
B2: МЕСЯЦ | C2: ДАТА | D2: МАМА | K2: ДЕД
D3: ПИК | F3: НОЧЬ | H3: П/ПИК | J3: ИТОГО | K3: ПИК | M3: НОЧЬ | O3: П/ПИК | Q3: ИТОГО
D4: ПОКАЗ | E4: КВТ/Ч | F4: ПОКАЗ | G4: КВТ/Ч | H4: ПОКАЗ | I4: КВТ/Ч | K4: ПОКАЗ | L4: КВТ/Ч | M4: ПОКАЗ | N4: КВТ/Ч | O4: ПОКАЗ | P4: КВТ/Ч
B5: ЯНВАРЬ | C5: 2022-01-20 | D5: 3475 | F5: 3114 | H5: 5979 | J5: =SUM(D5:I5) -> 12568 | K5: 4604 | M5: 4388 | O5: 6587 | Q5: =SUM(K5:P5) -> 15579
E6: =D5-3432 -> 43 | G6: =F5-3074 -> 40 | I6: =H5-5906 -> 73 | J6: =SUM(D6:I6) -> 156 | L6: =K5-4546 -> 58 | N6: =M5-4329 -> 59 | P6: =O5-6497 -> 90 | Q6: =SUM(K6:P6) -> 207
B7: ФЕВРАЛЬ | D7: 3475 | F7: 3114 | H7: 5979 | J7: =SUM(D7:I7) -> 12568 | K7: 4604 | M7: 4388 | O7: 6587 | Q7: =SUM(K7:P7) -> 15579
E8: =D7-D5 -> 0 | G8: =F7-F5 -> 0 | I8: =H7-H5 -> 0 | J8: 0 | L8: =K7-K5 -> 0 | N8: =M7-M5 -> 0 | P8: =O7-O5 -> 0 | Q8: 0
B9: МАРТ | C9: 2022-03-20 | D9: 3565 | F9: 3195 | H9: 6128 | J9: 12888 | K9: 4725 | M9: 4507 | O9: 6751 | Q9: 15983
E10: =D9-D7 -> 90 | G10: =F9-F7 -> 81 | I10: =H9-H7 -> 149 | J10: 320 | L10: =K9-K7 -> 121 | N10: =M9-M7 -> 119 | P10: =O9-O7 -> 164 | Q10: 404
B11: АПРЕЛЬ | C11: 2022-04-20 | D11: 3612 | F11: 3235 | H11: 6204 | J11: 13051 | K11: 4792 | M11: 4574 | O11: 6839 | Q11: 16205
E12: =D11-D9 -> 47 | G12: =F11-F9 -> 40 | I12: =H11-H9 -> 76 | J12: 163 | L12: =K11-K9 -> 67 | N12: =M11-M9 -> 67 | P12: =O11-O9 -> 88 | Q12: 222
B13: МАЙ | C13: 2022-05-25 | D13: 3669 | F13: 3276 | H13: 6281 | J13: 13226 | K13: 4858 | M13: 4650 | O13: 6936 | Q13: 16444
E14: =D13-D11 -> 57 | G14: =F13-F11 -> 41 | I14: =H13-H11 -> 77 | J14: 175 | L14: =K13-K11 -> 66 | N14: =M13-M11 -> 76 | P14: =O13-O11 -> 97 | Q14: 239
B15: ИЮНЬ | C15: 2022-06-30 | D15: 3713 | F15: 3320 | H15: 6358 | J15: 13391 | K15: 4919 | M15: 4720 | O15: 7020 | Q15: 16659
E16: =D15-D13 -> 44 | G16: =F15-F13 -> 44 | I16: =H15-H13 -> 77 | J16: 165 | L16: =K15-K13 -> 61 | N16: =M15-M13 -> 70 | P16: =O15-O13 -> 84 | Q16: 215
B17: ИЮЛЬ | C17: 2022-07-25 | D17: 3755 | F17: 3362 | H17: 6440 | J17: 13557 | K17: 5021 | M17: 4810 | O17: 7159 | Q17: 16990
E18: =D17-D15 -> 42 | G18: =F17-F15 -> 42 | I18: =H17-H15 -> 82 | J18: 166 | L18: =K17-K15 -> 102 | N18: =M17-M15 -> 90 | P18: =O17-O15 -> 139 | Q18: 331
B19: АВГУСТ | D19: 3755 | F19: 3362 | H19: 6440 | J19: 13557 | K19: 5021 | M19: 4810 | O19: 7159 | Q19: 16990
E20: =D19-D17 -> 0 | G20: =F19-F17 -> 0 | I20: =H19-H17 -> 0 | J20: 0 | L20: =K19-K17 -> 0 | N20: =M19-M17 -> 0 | P20: =O19-O17 -> 0 | Q20: 0
B21: СЕНТЯБРЬ | J21: 0 | Q21: 0
E22: =MAX(D21-D19,0) -> 0 | G22: =MAX(F21-F19,0) -> 0 | I22: =MAX(H21-H19,0) -> 0 | J22: 0 | L22: =MAX(K21-K19,0) -> 0 | N22: =MAX(M21-M19,0) -> 0 | P22: =MAX(O21-O19,0) -> 0 | Q22: 0
B23: ОКТЯБРЬ | J23: 0 | Q23: 0
E24: =MAX(D23-D21,0) -> 0 | G24: =MAX(F23-F21,0) -> 0 | I24: =MAX(H23-H21,0) -> 0 | J24: 0 | L24: =MAX(K23-K21,0) -> 0 | N24: =MAX(M23-M21,0) -> 0 | P24: =MAX(O23-O21,0) -> 0 | Q24: 0
B25: НОЯБРЬ | J25: 0 | Q25: 0
E26: 0 | G26: 0 | I26: 0 | J26: 0 | L26: 0 | N26: 0 | P26: 0 | Q26: 0
B27: ДЕКАБРЬ | J27: 0 | Q27: 0
E28: 0 | G28: 0 | I28: 0 | J28: 0 | L28: 0 | N28: 0 | P28: 0 | Q28: 0
B29: ИТОГО | C29: ГОД | D29: =SUM(E5:E28) -> 323 | F29: =SUM(G5:G28) -> 288 | H29: =SUM(I5:I28) -> 534 | J29: =SumIntervalRows(J5:J28,2) -> 1145 | K29: =SUM(L5:L28) -> 475 | M29: =SUM(N5:N28) -> 481 | O29: =SUM(P5:P28) -> 662 | Q29: =SumIntervalRows(Q5:Q28,2) -> 1618
G32: ВО ЭТУ СТРОКУ
